Workbook

Sheet Balance pérdidas y ganancias
B1: Pérdidas y Ganancias Declaración
D3: PERÍODO ANTERIOR | E3: PRESUPUESTO | F3: PERÍODO ACTUAL | H3: PERÍODO ACTUAL COMO % DE LAS VENTAS | I3: % DE CAMBIO DEL PERÍODO ANTERIOR | J3: % DE CAMBIO DEL PRESUPUESTO
B4: Ganancias por ventas
B6: Producto/Servicio 1 | D6: 40 | E6: 50 | F6: 45 | H6: =IFERROR(Ingresosventas[[#This Row],[Período Actual ]]/SUBTOTAL(109,Ingresosventas[[Período Actual ]]),0) -> 100.0% | I6: =IFERROR(Ingresosventas[[#This Row],[Período Actual ]]/Ingresosventas[[#This Row],[Período Anterior]]-1,0) -> 12.5% | J6: =IFERROR(Ingresosventas[[#This Row],[Período Actual ]]/Ingresosventas[[#This Row],[Presupuesto]]-1,0) -> -10.0%
B7: Producto/Servicio 2 | H7: =IFERROR(Ingresosventas[[#This Row],[Período Actual ]]/SUBTOTAL(109,Ingresosventas[[Período Actual ]]),0) -> 0 | I7: =IFERROR(Ingresosventas[[#This Row],[Período Actual ]]/Ingresosventas[[#This Row],[Período Anterior]]-1,0) -> 0 | J7: =IFERROR(Ingresosventas[[#This Row],[Período Actual ]]/Ingresosventas[[#This Row],[Presupuesto]]-1,0) -> 0
B8: Producto/Servicio 3 | H8: =IFERROR(Ingresosventas[[#This Row],[Período Actual ]]/SUBTOTAL(109,Ingresosventas[[Período Actual ]]),0) -> 0 | I8: =IFERROR(Ingresosventas[[#This Row],[Período Actual ]]/Ingresosventas[[#This Row],[Período Anterior]]-1,0) -> 0 | J8: =IFERROR(Ingresosventas[[#This Row],[Período Actual ]]/Ingresosventas[[#This Row],[Presupuesto]]-1,0) -> 0
B9: Producto/Servicio 4 | H9: =IFERROR(Ingresosventas[[#This Row],[Período Actual ]]/SUBTOTAL(109,Ingresosventas[[Período Actual ]]),0) -> 0 | I9: =IFERROR(Ingresosventas[[#This Row],[Período Actual ]]/Ingresosventas[[#This Row],[Período Anterior]]-1,0) -> 0 | J9: =IFERROR(Ingresosventas[[#This Row],[Período Actual ]]/Ingresosventas[[#This Row],[Presupuesto]]-1,0) -> 0
B10: Total | D10: =SUBTOTAL(109,Ingresosventas[Período Anterior]) -> 40 | E10: =SUBTOTAL(109,Ingresosventas[Presupuesto]) -> 50 | F10: =SUBTOTAL(109,Ingresosventas[[Período Actual ]]) -> 45 | H10: =IFERROR(Ingresosventas[[#Totals],[Período Actual ]]/Ingresosventas[[#Totals],[Período Actual ]],0) -> 100.0% | I10: =IFERROR(Ingresosventas[[#Totals],[Período Actual ]]/Ingresosventas[[#Totals],[Período Anterior]]-1,0) -> 12.5% | J10: =IFERROR(Ingresosventas[[#Totals],[Período Actual ]]/Ingresosventas[[#Totals],[Presupuesto]]-1,0) -> -10.0%
B12: Costo de ventas
B14: Producto/Servicio 1 | E14: 2 | F14: 3 | H14: =IFERROR(CosteDeVentas[[#This Row],[Período Actual ]]/SUBTOTAL(109,Ingresosventas[[Período Actual ]]),0) -> 6.7% | I14: =IFERROR(CosteDeVentas[[#This Row],[Período Actual ]]/CosteDeVentas[[#This Row],[Período Anterior]]-1,0) -> 0 | J14: =IFERROR(CosteDeVentas[[#This Row],[Período Actual ]]/CosteDeVentas[[#This Row],[Presupuesto]]-1,0) -> 50.0%
B15: Producto/Servicio 2 | E15: 5 | F15: 3 | H15: =IFERROR(CosteDeVentas[[#This Row],[Período Actual ]]/SUBTOTAL(109,Ingresosventas[[Período Actual ]]),0) -> 6.7% | I15: =IFERROR(CosteDeVentas[[#This Row],[Período Actual ]]/CosteDeVentas[[#This Row],[Período Anterior]]-1,0) -> 0 | J15: =IFERROR(CosteDeVentas[[#This Row],[Período Actual ]]/CosteDeVentas[[#This Row],[Presupuesto]]-1,0) -> -40.0%
B16: Producto/Servicio 3 | F16: 1 | H16: =IFERROR(CosteDeVentas[[#This Row],[Período Actual ]]/SUBTOTAL(109,Ingresosventas[[Período Actual ]]),0) -> 2.2% | I16: =IFERROR(CosteDeVentas[[#This Row],[Período Actual ]]/CosteDeVentas[[#This Row],[Período Anterior]]-1,0) -> 0 | J16: =IFERROR(CosteDeVentas[[#This Row],[Período Actual ]]/CosteDeVentas[[#This Row],[Presupuesto]]-1,0) -> 0
B17: Producto/Servicio 4 | H17: =IFERROR(CosteDeVentas[[#This Row],[Período Actual ]]/SUBTOTAL(109,Ingresosventas[[Período Actual ]]),0) -> 0 | I17: =IFERROR(CosteDeVentas[[#This Row],[Período Actual ]]/CosteDeVentas[[#This Row],[Período Anterior]]-1,0) -> 0 | J17: =IFERROR(CosteDeVentas[[#This Row],[Período Actual ]]/CosteDeVentas[[#This Row],[Presupuesto]]-1,0) -> 0
B18: Total | D18: =SUBTOTAL(109,CosteDeVentas[Período Anterior]) -> 0 | E18: =SUBTOTAL(109,CosteDeVentas[Presupuesto]) -> 7 | F18: =SUBTOTAL(109,CosteDeVentas[[Período Actual ]]) -> 7 | H18: =IFERROR(CosteDeVentas[[#Totals],[Período Actual ]]/SUBTOTAL(109,Ingresosventas[[Período Actual ]]),0) -> 15.6% | I18: =IFERROR(CosteDeVentas[[#Totals],[Período Actual ]]/CosteDeVentas[[#Totals],[Período Anterior]]-1,0) -> 0 | J18: =IFERROR(CosteDeVentas[[#Totals],[Período Actual ]]/CosteDeVentas[[#Totals],[Presupuesto]]-1,0) -> 0
B20: Ganancias brutas | D20: =SUM(Ingresosventas[Período Anterior])-SUM(CosteDeVentas[Período Anterior]) -> 40 | E20: =SUM(Ingresosventas[Presupuesto])-SUM(CosteDeVentas[Presupuesto]) -> 43 | F20: =SUM(Ingresosventas[[Período Actual ]])-SUM(CosteDeVentas[[Período Actual ]]) -> 38 | H20: =IFERROR(F20/SUBTOTAL(109,Ingresosventas[[Período Actual ]]),0) -> 84.4% | I20: =IFERROR(F20/D20-1,0) -> -5.0% | J20: =IFERROR(F20/E20-1,0) -> -11.6%
B22: Gastos operativos: Ventas y Marketing
B24: Publicidad | E24: 22 | F24: 19 | H24: =IFERROR(Ventasymarketing[[#This Row],[Período Actual ]]/SUBTOTAL(109,Ingresosventas[[Período Actual ]]),0) -> 42.2% | I24: =IFERROR(Ventasymarketing[[#This Row],[Período Actual ]]/Ventasymarketing[[#This Row],[Período Anterior]]-1,0) -> 0 | J24: =IFERROR(Ventasymarketing[[#This Row],[Período Actual ]]/Ventasymarketing[[#This Row],[Presupuesto]]-1,0) -> -13.6%
B25: Marketing directo | H25: =IFERROR(Ventasymarketing[[#This Row],[Período Actual ]]/SUBTOTAL(109,Ingresosventas[[Período Actual ]]),0) -> 0 | I25: =IFERROR(Ventasymarketing[[#This Row],[Período Actual ]]/Ventasymarketing[[#This Row],[Período Anterior]]-1,0) -> 0 | J25: =IFERROR(Ventasymarketing[[#This Row],[Período Actual ]]/Ventasymarketing[[#This Row],[Presupuesto]]-1,0) -> 0
B26: Otros gastos (especifique) | H26: =IFERROR(Ventasymarketing[[#This Row],[Período Actual ]]/SUBTOTAL(109,Ingresosventas[[Período Actual ]]),0) -> 0 | I26: =IFERROR(Ventasymarketing[[#This Row],[Período Actual ]]/Ventasymarketing[[#This Row],[Período Anterior]]-1,0) -> 0 | J26: =IFERROR(Ventasymarketing[[#This Row],[Período Actual ]]/Ventasymarketing[[#This Row],[Presupuesto]]-1,0) -> 0
B27: Total | D27: =SUBTOTAL(109,Ventasymarketing[Período Anterior]) -> 0 | E27: =SUBTOTAL(109,Ventasymarketing[Presupuesto]) -> 22 | F27: =SUBTOTAL(109,Ventasymarketing[[Período Actual ]]) -> 19 | H27: =IFERROR(Ventasymarketing[[#Totals],[Período Actual ]]/SUBTOTAL(109,Ingresosventas[[Período Actual ]]),0) -> 42.2% | I27: =IFERROR(Ventasymarketing[[#Totals],[Período Actual ]]/Ventasymarketing[[#Totals],[Período Anterior]]-1,0) -> 0 | J27: =IFERROR(Ventasymarketing[[#Totals],[Período Actual ]]/Ventasymarketing[[#Totals],[Presupuesto]]-1,0) -> -13.6%
B29: Gastos operativos: Generales y Administrativos
B31: Sueldos y salarios | E31: 56 | F31: 51 | H31: =IFERROR(AdministrativaYGeneral[[#This Row],[Período Actual ]]/SUBTOTAL(109,Ingresosventas[[Período Actual ]]),0) -> 113.3% | I31: =IFERROR(AdministrativaYGeneral[[#This Row],[Período Actual ]]/AdministrativaYGeneral[[#This Row],[Período Anterior]]-1,0) -> 0 | J31: =IFERROR(AdministrativaYGeneral[[#This Row],[Período Actual ]]/AdministrativaYGeneral[[#This Row],[Presupuesto]]-1,0) -> -8.9%
B32: Servicios externos | H32: =IFERROR(AdministrativaYGeneral[[#This Row],[Período Actual ]]/SUBTOTAL(109,Ingresosventas[[Período Actual ]]),0) -> 0 | I32: =IFERROR(AdministrativaYGeneral[[#This Row],[Período Actual ]]/AdministrativaYGeneral[[#This Row],[Período Anterior]]-1,0) -> 0 | J32: =IFERROR(AdministrativaYGeneral[[#This Row],[Período Actual ]]/AdministrativaYGeneral[[#This Row],[Presupuesto]]-1,0) -> 0
B33: Suministros | H33: =IFERROR(AdministrativaYGeneral[[#This Row],[Período Actual ]]/SUBTOTAL(109,Ingresosventas[[Período Actual ]]),0) -> 0 | I33: =IFERROR(AdministrativaYGeneral[[#This Row],[Período Actual ]]/AdministrativaYGeneral[[#This Row],[Período Anterior]]-1,0) -> 0 | J33: =IFERROR(AdministrativaYGeneral[[#This Row],[Período Actual ]]/AdministrativaYGeneral[[#This Row],[Presupuesto]]-1,0) -> 0
B34: Comidas y entretenimiento | H34: =IFERROR(AdministrativaYGeneral[[#This Row],[Período Actual ]]/SUBTOTAL(109,Ingresosventas[[Período Actual ]]),0) -> 0 | I34: =IFERROR(AdministrativaYGeneral[[#This Row],[Período Actual ]]/AdministrativaYGeneral[[#This Row],[Período Anterior]]-1,0) -> 0 | J34: =IFERROR(AdministrativaYGeneral[[#This Row],[Período Actual ]]/AdministrativaYGeneral[[#This Row],[Presupuesto]]-1,0) -> 0
B35: Alquiler | H35: =IFERROR(AdministrativaYGeneral[[#This Row],[Período Actual ]]/SUBTOTAL(109,Ingresosventas[[Período Actual ]]),0) -> 0 | I35: =IFERROR(AdministrativaYGeneral[[#This Row],[Período Actual ]]/AdministrativaYGeneral[[#This Row],[Período Anterior]]-1,0) -> 0 | J35: =IFERROR(AdministrativaYGeneral[[#This Row],[Período Actual ]]/AdministrativaYGeneral[[#This Row],[Presupuesto]]-1,0) -> 0
B36: Teléfono | H36: =IFERROR(AdministrativaYGeneral[[#This Row],[Período Actual ]]/SUBTOTAL(109,Ingresosventas[[Período Actual ]]),0) -> 0 | I36: =IFERROR(AdministrativaYGeneral[[#This Row],[Período Actual ]]/AdministrativaYGeneral[[#This Row],[Período Anterior]]-1,0) -> 0 | J36: =IFERROR(AdministrativaYGeneral[[#This Row],[Período Actual ]]/AdministrativaYGeneral[[#This Row],[Presupuesto]]-1,0) -> 0
B37: Servicios públicos | H37: =IFERROR(AdministrativaYGeneral[[#This Row],[Período Actual ]]/SUBTOTAL(109,Ingresosventas[[Período Actual ]]),0) -> 0 | I37: =IFERROR(AdministrativaYGeneral[[#This Row],[Período Actual ]]/AdministrativaYGeneral[[#This Row],[Período Anterior]]-1,0) -> 0 | J37: =IFERROR(AdministrativaYGeneral[[#This Row],[Período Actual ]]/AdministrativaYGeneral[[#This Row],[Presupuesto]]-1,0) -> 0
B38: Depreciación | H38: =IFERROR(AdministrativaYGeneral[[#This Row],[Período Actual ]]/SUBTOTAL(109,Ingresosventas[[Período Actual ]]),0) -> 0 | I38: =IFERROR(AdministrativaYGeneral[[#This Row],[Período Actual ]]/AdministrativaYGeneral[[#This Row],[Período Anterior]]-1,0) -> 0 | J38: =IFERROR(AdministrativaYGeneral[[#This Row],[Período Actual ]]/AdministrativaYGeneral[[#This Row],[Presupuesto]]-1,0) -> 0
B39: Seguro | H39: =IFERROR(AdministrativaYGeneral[[#This Row],[Período Actual ]]/SUBTOTAL(109,Ingresosventas[[Período Actual ]]),0) -> 0 | I39: =IFERROR(AdministrativaYGeneral[[#This Row],[Período Actual ]]/AdministrativaYGeneral[[#This Row],[Período Anterior]]-1,0) -> 0 | J39: =IFERROR(AdministrativaYGeneral[[#This Row],[Período Actual ]]/AdministrativaYGeneral[[#This Row],[Presupuesto]]-1,0) -> 0
B40: Reparaciones y mantenimiento | H40: =IFERROR(AdministrativaYGeneral[[#This Row],[Período Actual ]]/SUBTOTAL(109,Ingresosventas[[Período Actual ]]),0) -> 0 | I40: =IFERROR(AdministrativaYGeneral[[#This Row],[Período Actual ]]/AdministrativaYGeneral[[#This Row],[Período Anterior]]-1,0) -> 0 | J40: =IFERROR(AdministrativaYGeneral[[#This Row],[Período Actual ]]/AdministrativaYGeneral[[#This Row],[Presupuesto]]-1,0) -> 0
B41: Otros gastos (especifique) | H41: =IFERROR(AdministrativaYGeneral[[#This Row],[Período Actual ]]/SUBTOTAL(109,Ingresosventas[[Período Actual ]]),0) -> 0 | I41: =IFERROR(AdministrativaYGeneral[[#This Row],[Período Actual ]]/AdministrativaYGeneral[[#This Row],[Período Anterior]]-1,0) -> 0 | J41: =IFERROR(AdministrativaYGeneral[[#This Row],[Período Actual ]]/AdministrativaYGeneral[[#This Row],[Presupuesto]]-1,0) -> 0
B42: Total | D42: =SUBTOTAL(109,AdministrativaYGeneral[Período Anterior]) -> 0 | E42: =SUBTOTAL(109,AdministrativaYGeneral[Presupuesto]) -> 56 | F42: =SUBTOTAL(109,AdministrativaYGeneral[[Período Actual ]]) -> 51 | H42: =IFERROR(AdministrativaYGeneral[[#Totals],[Período Actual ]]/SUBTOTAL(109,Ingresosventas[[Período Actual ]]),0) -> 113.3% | I42: =IFERROR(AdministrativaYGeneral[[#Totals],[Período Actual ]]/AdministrativaYGeneral[[#Totals],[Período Anterior]]-1,0) -> 0 | J42: =IFERROR(AdministrativaYGeneral[[#Totals],[Período Actual ]]/AdministrativaYGeneral[[#Totals],[Presupuesto]]-1,0) -> -8.9%
B44: Gastos operativos: Otros
B46: Otros gastos operativos 1 | E46: 10 | H46: =IFERROR(Otrosgastosoperativoscategoría[[#This Row],[Período Actual ]]/SUBTOTAL(109,Ingresosventas[[Período Actual ]]),0) -> 0 | I46: =IFERROR(Otrosgastosoperativoscategoría[[#This Row],[Período Actual ]]/Otrosgastosoperativoscategoría[[#This Row],[Prior Period]]-1,0) -> 0 | J46: =IFERROR(Otrosgastosoperativoscategoría[[#This Row],[Período Actual ]]/Otrosgastosoperativoscategoría[[#This Row],[Presupuesto]]-1,0) -> -100.0%
B47: Otros gastos operativos 2 | H47: =IFERROR(Otrosgastosoperativoscategoría[[#This Row],[Período Actual ]]/SUBTOTAL(109,Ingresosventas[[Período Actual ]]),0) -> 0 | I47: =IFERROR(Otrosgastosoperativoscategoría[[#This Row],[Período Actual ]]/Otrosgastosoperativoscategoría[[#This Row],[Prior Period]]-1,0) -> 0 | J47: =IFERROR(Otrosgastosoperativoscategoría[[#This Row],[Período Actual ]]/Otrosgastosoperativoscategoría[[#This Row],[Presupuesto]]-1,0) -> 0
B48: Total | D48: =SUBTOTAL(109,Otrosgastosoperativoscategoría[Prior Period]) -> 0 | E48: =SUBTOTAL(109,Otrosgastosoperativoscategoría[Presupuesto]) -> 10 | F48: =SUBTOTAL(109,Otrosgastosoperativoscategoría[[Período Actual ]]) -> 0 | H48: =IFERROR(Otrosgastosoperativoscategoría[[#Totals],[Período Actual ]]/SUBTOTAL(109,Ingresosventas[[Período Actual ]]),0) -> 0 | I48: =IFERROR(Otrosgastosoperativoscategoría[[#Totals],[Período Actual ]]/Otrosgastosoperativoscategoría[[#Totals],[Prior Period]]-1,0) -> 0 | J48: =IFERROR(Otrosgastosoperativoscategoría[[#Totals],[Período Actual ]]/Otrosgastosoperativoscategoría[[#Totals],[Presupuesto]]-1,0) -> -100.0%
B50: Gastos operativos totales | D50: =SUM(Ventasymarketing[Período Anterior],AdministrativaYGeneral[Período Anterior],Otrosgastosoperativoscategoría[Prior Period]) -> 0 | E50: =SUM(Ventasymarketing[Presupuesto],AdministrativaYGeneral[Presupuesto],Otrosgastosoperativoscategoría[Presupuesto]) -> 88 | F50: =SUM(Ventasymarketing[[Período Actual ]],AdministrativaYGeneral[[Período Actual ]],Otrosgastosoperativoscategoría[[Período Actual ]]) -> 70 | H50: =IFERROR(F50/SUBTOTAL(109,Ingresosventas[[Período Actual ]]),0) -> 155.6% | I50: =IFERROR(F50/D50-1,0) -> 0 | J50: =IFERROR(F50/E50-1,0) -> -20.5%
B52: Ingresos por operaciones | D52: =D20-D50 -> 40 | E52: =E20-E50 -> -45 | F52: =F20-F50 -> -32 | H52: =IFERROR(F52/SUBTOTAL(109,Ingresosventas[[Período Actual ]]),0) -> -71.1% | I52: =IFERROR(IF(D52=F52,0,IF(F52>D52,ABS((F52/D52)-1),IF(AND(F52<D52,D52<0),-((F52/D52)-1),(F52/D52)-1))),0) -> -180.0% | J52: =IFERROR(IF(E52=F52,0,IF(F52>E52,ABS((F52/E52)-1),IF(AND(F52<E52,E52<0),-((F52/E52)-1),(F52/E52)-1))),0) -> 28.9%
B54: Otros ingresos | H54: =IFERROR(F54/SUBTOTAL(109,Ingresosventas[[Período Actual ]]),0) -> 0 | I54: =IFERROR(F54/D54-1,0) -> 0 | J54: =IFERROR(F54/E54-1,0) -> 0
B56: Impuestos
B58: Impuestos por ingresos | E58: 32 | F58: 30 | H58: =IFERROR(Impuestos[[#This Row],[Período Actual ]]/SUBTOTAL(109,Ingresosventas[[Período Actual ]]),0) -> 66.7% | I58: =IFERROR(Impuestos[[#This Row],[Período Actual ]]/Impuestos[[#This Row],[Período Anterior]]-1,0) -> 0 | J58: =IFERROR(Impuestos[[#This Row],[Período Actual ]]/Impuestos[[#This Row],[Presupuesto]]-1,0) -> -6.3%
B59: Impuestos por personal | H59: =IFERROR(Impuestos[[#This Row],[Período Actual ]]/SUBTOTAL(109,Ingresosventas[[Período Actual ]]),0) -> 0 | I59: =IFERROR(Impuestos[[#This Row],[Período Actual ]]/Impuestos[[#This Row],[Período Anterior]]-1,0) -> 0 | J59: =IFERROR(Impuestos[[#This Row],[Período Actual ]]/Impuestos[[#This Row],[Presupuesto]]-1,0) -> 0
B60: Impuestos por bienes raíces | H60: =IFERROR(Impuestos[[#This Row],[Período Actual ]]/SUBTOTAL(109,Ingresosventas[[Período Actual ]]),0) -> 0 | I60: =IFERROR(Impuestos[[#This Row],[Período Actual ]]/Impuestos[[#This Row],[Período Anterior]]-1,0) -> 0 | J60: =IFERROR(Impuestos[[#This Row],[Período Actual ]]/Impuestos[[#This Row],[Presupuesto]]-1,0) -> 0
B61: Otros impuestos (especifique) | H61: =IFERROR(Impuestos[[#This Row],[Período Actual ]]/SUBTOTAL(109,Ingresosventas[[Período Actual ]]),0) -> 0 | I61: =IFERROR(Impuestos[[#This Row],[Período Actual ]]/Impuestos[[#This Row],[Período Anterior]]-1,0) -> 0 | J61: =IFERROR(Impuestos[[#This Row],[Período Actual ]]/Impuestos[[#This Row],[Presupuesto]]-1,0) -> 0
B62: Total | D62: =SUBTOTAL(109,Impuestos[Período Anterior]) -> 0 | E62: =SUBTOTAL(109,Impuestos[Presupuesto]) -> 32 | F62: =SUBTOTAL(109,Impuestos[[Período Actual ]]) -> 30 | H62: =IFERROR(Impuestos[[#Totals],[Período Actual ]]/SUBTOTAL(109,Ingresosventas[[Período Actual ]]),0) -> 66.7% | I62: =IFERROR(Impuestos[[#Totals],[Período Actual ]]/Impuestos[[#Totals],[Período Anterior]]-1,0) -> 0 | J62: =IFERROR(Impuestos[[#Totals],[Período Actual ]]/Impuestos[[#Totals],[Presupuesto]]-1,0) -> -6.3%
B64: Ganancias netas | D64: =D52+D54-Impuestos[[#Totals],[Período Anterior]] -> 40 | E64: =E52+E54-Impuestos[[#Totals],[Período Anterior]] -> -45 | F64: =F52+F54-Impuestos[[#Totals],[Período Anterior]] -> -32 | H64: =IFERROR(F64/SUBTOTAL(109,Ingresosventas[[Período Actual ]]),0) -> -71.1% | I64: =IFERROR(IF(D64=F64,0,IF(F64>D64,ABS((F64/D64)-1),IF(AND(F64<D64,D64<0),-((F64/D64)-1),(F64/D64)-1))),0) -> -180.0% | J64: =IFERROR(IF(E64=F64,0,IF(F64>E64,ABS((F64/E64)-1),IF(AND(F64<E64,E64<0),-((F64/E64)-1),(F64/E64)-1))),0) -> 28.9%
B65: Margen bruto | D65: =D20/SUM(Ingresosventas[Período Anterior]) -> 100.0% | E65: =E20/SUM(Ingresosventas[Presupuesto]) -> 86.0% | F65: =F20/SUM(Ingresosventas[[Período Actual ]]) -> 84.4%
B66: Ganancias por ventas | D66: =D64/SUM(Ingresosventas[Período Anterior]) -> 100.0% | E66: =E64/SUM(Ingresosventas[Presupuesto]) -> -90.0% | F66: =F64/SUM(Ingresosventas[[Período Actual ]]) -> -71.1%
